bitfinex/quotes_ETHUSD_20241212
["timestamp","ask_amount","ask_price","bid_price","bid_amount"]
[1734044728234,2.57754,3879.7,3878.1,2.91187213]
[1734044728235,2.57754,3879.7,3878.5,2.836137]
[1734044728932,2.57754,3879.7,3878.5,0.257837]
[1734044729132,1.1526,3879.8,3878.3,1.1729]
[1734044729330,1.1526,3879.8,3878.4,3.0]
[1734044729624,2.57758,3879.6,3878.3,3.75132]
[1734044729807,2.60980414,3879.6,3878.3,1.1729]
[1734044730009,1.1526,3879.8,3878.5,3.0]
[1734044730178,1.1526,3879.8,3878.7,3.0]
[1734044730401,1.1526,3879.8,3879.0,2.57798]
[1734044730599,1.1526,3879.8,3879.1,1.1351]
[1734044730802,1.1526,3879.8,3879.1,4.1351]
[1734044731902,1.1526,3879.8,3879.1,3.0]
[1734044732918,1.1526,3879.8,3879.1,3.84899721]
[1734044734019,1.2239,3880.3,3879.1,6.42690721]
[1734044734349,2.57732,3880.0,3879.1,3.84899721]
[1734044735304,2.57736,3880.0,3879.1,3.84899721]
[1734044735806,0.03221891,3879.9,3878.7,1.1867]
[1734044736141,2.57732,3880.0,3878.9,3.0]
[1734044736703,2.57732,3880.0,3878.9,5.91187213]
[1734044737144,0.03221994,3879.9,3878.9,5.91187213]
[1734044737346,2.5776,3879.6,3878.7,1.1867]
[1734044737535,2.5776,3879.6,3878.7,4.96406991]
[1734044737704,1.1491,3880.1,3878.7,4.96406991]
[1734044737705,1.18132109,3880.1,3878.7,4.96406991]
[1734044737909,2.57739,3879.9,3878.7,4.96406991]
[1734044738548,2.60970108,3879.8,3878.7,4.96406991]
[1734044739633,2.57762,3879.6,3878.7,4.96406991]
[1734044739821,1.2243,3879.5,3878.7,1.1867]
[1734044741150,1.2243,3879.5,3878.4,2.91187213]
[1734044741151,0.03222437,3879.4,3878.4,1.2316]
[1734044741353,1.2243,3878.7,3877.8,2.48736948]
[1734044741555,1.2243,3878.7,3877.7,1.2316]
[1734044741556,1.25652948,3878.7,3877.7,1.2316]
[1734044741710,2.57834,3878.5,3877.7,1.2316]
[1734044741909,1.2243,3878.7,3877.7,1.2316]
[1734044742120,1.862351,3878.7,3877.7,1.2316]
[1734044742734,1.2243,3878.7,3877.8,2.57877]
[1734044742909,1.2243,3878.7,3877.7,1.2316]
[1734044743107,1.2243,3878.7,3877.4,2.48736948]
[1734044743108,0.0322317,3878.6,3877.4,2.48736948]
[1734044743410,2.6104817,3878.6,3877.4,6.18917948]
[1734044743648,1.2243,3878.7,3877.5,2.57897]
[1734044743855,0.41237396,3878.6,3877.4,3.61016948]
[1734044744058,0.41237396,3878.6,3877.0,2.48736948]
[1734044744359,2.5785,3878.3,3877.0,2.48736948]
[1734044744507,1.1557,3878.4,3877.0,2.48736948]
[1734044744508,1.1557,3878.4,3877.0,5.06666948]
[1734044744707,1.1557,3878.4,3877.1,2.57924]
[1734044744954,2.57851,3878.2,3877.0,2.48736948]
[1734044745113,0.4114311,3878.3,3876.9,1.1485]
[1734044745114,2.57877,3877.9,3876.9,1.1485]
[1734044745309,2.9898811,3878.3,3876.5,1.2126]
[1734044745310,1.1478,3877.6,3876.5,1.2126]
[1734044745520,2.57917,3877.3,3876.0,3.69996948]
[1734044745719,1.1478,3877.6,3876.0,3.69996948]
[1734044745953,0.40490413,3877.5,3876.1,0.62799895]
[1734044746510,2.57944,3876.9,3876.0,1.2126]
[1734044746720,2.57911,3877.3,3875.6,5.06755948]
[1734044746721,1.1478,3876.7,3875.6,3.69996948]
[1734044746951,0.03224708,3876.6,3875.6,3.69996948]
[1734044747254,0.03224708,3876.6,3875.6,1.2126]
[1734044747613,1.1478,3876.7,3875.6,1.2126]
[1734044747813,1.1478,3876.7,3875.7,0.4124309]
[1734044748013,1.1478,3876.7,3875.7,3.4124309]
[1734044748459,1.1478,3876.7,3875.7,0.4124309]
[1734044748628,1.1178,3877.2,3875.9,3.0]
[1734044749315,1.11469346,3877.2,3875.9,3.0]
[1734044749528,1.11469346,3877.2,3876.3,2.57975]
[1734044749758,3.0,3878.2,3876.5,2.57963]
[1734044749942,0.03224312,3878.1,3876.6,3.0]
[1734044750260,2.57879,3877.8,3876.6,3.0]
[1734044750460,0.0322403,3877.7,3876.7,0.557964]
[1734044750755,2.57879,3877.8,3876.7,0.557964]
[1734044751253,2.9899311,3878.3,3876.7,0.557964]
[1734044751254,0.4114311,3878.3,3876.8,1.1693]
[1734044751424,0.0322403,3878.2,3876.8,1.1693]
[1734044751951,2.57879,3877.8,3876.8,1.1693]
[1734044752152,2.6108103,3878.2,3876.9,0.7306824]
[1734044752452,2.57875,3877.9,3876.8,1.1693]
[1734044753350,1.25574029,3878.1,3876.8,1.1693]
[1734044753351,2.57878,3877.8,3876.8,1.1693]
[1734044753658,1.2235,3878.1,3876.8,1.1693]
[1734044753831,1.2235,3878.1,3876.8,3.74872]
[1734044754459,1.2235,3878.1,3876.8,4.1693]
[1734044754621,2.57809,3878.9,3877.7,3.0]
[1734044754817,2.57813,3878.8,3877.4,1.2391]
[1734044755118,2.57825,3878.6,3877.5,3.0]
[1734044755422,2.57825,3878.6,3877.4,3.81814]
[1734044755423,1.1728,3879.0,3877.4,1.2391]
[1734044755623,1.1728,3879.0,3877.8,3.0]
[1734044755946,1.1728,3879.0,3877.9,0.557881]
[1734044755947,3.75079,3879.0,3877.9,0.557881]
[1734044756168,1.1728,3879.0,3877.9,0.557881]
[1734044756376,2.57812,3878.8,3877.9,0.557881]
[1734044756575,0.03223102,3878.9,3877.4,1.2391]
[1734044756576,0.03223102,3878.9,3877.6,2.57889]
[1734044756872,2.61028102,3878.9,3877.7,3.0]
[1734044757424,2.57813,3878.8,3877.7,3.0]
[1734044757625,2.61036173,3878.8,3877.7,3.0]
[1734044757847,1.1728,3879.0,3877.4,1.2391]
[1734044758052,1.1728,3879.0,3877.8,3.0]
[1734044758250,3.75079,3879.0,3877.8,3.0]
[1734044758561,2.57807,3878.9,3877.8,3.0]
[1734044758721,2.57815,3878.8,3877.5,0.681822]
[1734044758926,2.61038173,3878.8,3877.5,3.260792]
[1734044759230,0.03223173,3878.8,3877.6,3.4499892]
[1734044759563,2.57826,3878.6,3877.6,0.4499892]
[1734044759965,1.1728,3879.0,3877.6,0.4499892]
[1734044759966,0.03223173,3878.9,3877.6,0.4499892]
[1734044760264,1.20503173,3879.0,3877.6,3.4499892]
[1734044760564,1.20503173,3879.0,3876.5,1.05070304]
[1734044760565,1.149,3878.9,3877.1,4.2036]
[1734044760733,2.57871,3877.9,3876.6,3.78317]
[1734044761439,2.57871,3877.9,3876.7,2.57948]
[1734044761639,2.57857,3878.2,3876.6,1.2036]
[1734044761824,2.57845,3878.3,3876.9,2.57931]
[1734044762025,2.57845,3878.3,3876.7,3.08264329]
[1734044762026,0.03223662,3878.2,3876.7,3.08264329]
[1734044762377,1.1524,3877.4,3876.6,1.2036]
[1734044763768,1.226,3877.8,3876.8,2.57943]
[1734044764069,3.80444,3878.3,3877.0,2.5793]
[1734044764280,3.80444,3878.3,3877.1,2.83715]
[1734044764432,0.03223661,3878.2,3877.1,2.83715]
[1734044764628,3.80444,3878.3,3877.1,2.83715]
[1734044764829,0.03223661,3878.2,3877.1,0.25793]
[1734044765143,0.03223661,3878.2,3876.8,2.57943]
[1734044765478,1.2209,3877.6,3876.6,1.2036]
[1734044765768,1.2209,3877.6,3876.0,0.12194053]
[1734044765769,2.57906,3877.4,3876.3,1.1759]
[1734044765953,2.61130309,3877.4,3876.4,0.675578]
[1734044766269,6.9859231,3878.5,3876.4,0.675578]
[1734044766270,1.1765,3878.1,3876.4,0.675578]
[1734044766472,2.57819,3878.7,3877.4,3.80791]
[1734044766669,2.57819,3878.7,3877.5,2.57896]
[1734044766965,1.1765,3878.9,3877.4,1.2289]
[1734044766966,3.75457,3878.9,3877.7,2.57884]
[1734044767269,1.1765,3878.9,3877.4,4.2289]
[1734044767423,1.1765,3878.9,3877.5,1.2289]
[1734044767774,1.1571,3879.3,3877.8,4.1691]
[1734044769374,3.7349,3879.3,3877.8,4.1691]
[1734044769547,3.7349,3879.3,3878.0,2.57861]
[1734044770071,3.7349,3879.3,3877.8,4.1691]
[1734044770274,3.7349,3879.3,3878.1,2.57857]
[1734044770459,3.7349,3879.3,3878.2,0.257857]
[1734044770779,1.18932755,3879.3,3878.2,0.257857]
[1734044770981,2.57796,3879.1,3877.8,4.1691]
[1734044771194,1.1571,3879.3,3877.8,4.1691]
[1734044771341,3.73493,3879.3,3878.0,2.57863]
[1734044771741,1.1571,3879.3,3878.0,2.57863]
[1734044771893,1.1571,3879.3,3878.1,0.674773]
[1734044772477,2.57785,3879.2,3878.1,0.674773]
[1734044772649,1.1571,3879.3,3878.2,2.57851]
[1734044773093,1.61132119,3880.5,3878.2,2.57851]
[1734044773094,2.57738,3880.0,3878.2,1.1733]
[1734044773300,1.1836,3879.9,3878.7,2.57814]
[1734044773502,1.559698,3879.9,3878.7,2.835954]
[1734044774272,4.137098,3879.9,3878.7,2.835954]
[1734044774693,4.137098,3879.9,3879.0,2.57797]
[1734044774694,1.1836,3879.9,3879.0,2.57797]
[1734044774909,1.07421413,3880.8,3878.8,1.1733]
[1734044775107,1.61132119,3881.0,3878.8,1.1733]
[1734044775108,1.1836,3880.3,3879.4,2.57771]
[1734044775396,2.57698,3880.5,3879.5,1.1733]
[1734044776005,1.1836,3880.6,3879.5,1.1733]
[1734044776006,2.57706,3880.4,3879.5,1.1733]
[1734044776209,1.1836,3880.6,3879.5,1.1733]
[1734044776405,1.1836,3880.6,3879.5,1.44557355]
[1734044777207,1.1836,3880.6,3879.3,3.0]
[1734044777208,0.03221616,3880.5,3879.3,3.0]
[1734044777392,2.57712,3880.3,3879.1,4.1322]
[1734044777594,0.03221743,3880.2,3879.1,4.1322]
[1734044777844,1.1796,3880.0,3879.1,4.1322]
[1734044778125,1.2118202,3880.0,3879.1,4.1322]
[1734044778421,1.21182008,3880.0,3879.1,1.1322]
[1734044778627,1.21182008,3880.0,3878.7,0.257814]
[1734044778628,0.37890801,3879.9,3878.8,1.2348]
[1734044778922,1.1796,3880.0,3878.9,2.57803]
[1734044779141,1.1796,3880.0,3879.0,3.0]
[1734044779286,1.1796,3880.0,3879.4,3.0]
[1734044779492,1.1759,3880.3,3879.5,0.557772]
[1734044781229,0.03221706,3880.2,3879.1,3.0]
[1734044781442,2.57725,3880.1,3879.1,3.0]
[1734044781644,1.1759,3880.3,3879.1,3.0]
[1734044781990,1.1759,3880.3,3879.3,3.0]
[1734044782187,1.1759,3880.7,3879.6,2.57757]
[1734044782422,1.1759,3880.7,3879.7,2.57748]
[1734044782638,1.1759,3880.7,3879.8,3.0]
[1734044784693,1.1759,3880.7,3879.5,3.0]
[1734044784907,1.1759,3880.7,3879.4,4.670235]
[1734044784908,2.577,3880.5,3879.4,5.092585]
[1734044785130,3.75275,3880.7,3879.4,5.092585]
[1734044785332,1.1759,3880.7,3879.7,2.57751]
[1734044785754,1.1759,3880.7,3879.5,4.01555727]
[1734044786032,1.1759,3880.7,3879.5,3.59319727]
[1734044786237,1.1759,3880.7,3879.6,3.0]
[1734044786442,0.03221415,3880.6,3879.4,4.2348]
[1734044786660,1.179,3880.5,3879.3,2.48514769]
[1734044786796,1.179,3880.5,3879.4,3.0]
[1734044786990,1.179,3880.5,3879.5,2.57762]
[1734044787190,1.179,3880.5,3879.6,3.50627677]
[1734044788137,1.179,3880.5,3879.6,0.50627677]
[1734044788855,1.179,3880.5,3879.8,3.81234]
[1734044790242,1.179,3880.5,3879.8,1.2349]
[1734044790650,1.179,3880.5,3879.7,5.48514769]
[1734044790960,1.179,3880.5,3879.7,6.45663414]
[1734044791297,2.57637,3881.5,3879.8,2.57744]
[1734044791497,1.2226,3880.9,3879.8,2.57744]
[1734044791852,1.2226,3880.9,3879.7,6.45663414]
[1734044792144,2.57679,3880.8,3879.8,1.06862809]
[1734044792347,1.2226,3880.9,3879.5,1.1458]
[1734044792348,2.57706,3880.4,3879.5,1.1458]
[1734044792558,2.99194569,3881.6,3879.1,1.1223]
[1734044792559,2.57726,3880.1,3879.1,1.1223]
[1734044792761,3.74564,3880.3,3879.1,3.70021]
[1734044793049,2.57727,3880.1,3879.1,1.1223]
[1734044793216,1.1685,3879.6,3878.7,1.380114]
[1734044793401,1.1685,3879.6,3878.7,0.257814]
[1734044793913,1.1685,3879.6,3878.8,0.53212317]
[1734044794127,1.1685,3879.6,3878.9,2.48514769]
[1734044794345,1.1685,3879.6,3879.0,3.0]
[1734044795064,2.57695,3880.6,3879.3,5.06289769]
[1734044795354,1.379695,3880.5,3879.3,2.48514769]
[1734044795530,1.15421895,3880.5,3879.3,2.48514769]
[1734044795734,1.122,3880.5,3879.3,2.48514769]
[1734044796040,1.122,3880.5,3879.2,3.0]
[1734044796249,2.57745,3879.9,3878.9,2.48514769]
[1734044796542,1.1547,3880.1,3879.0,3.0]
[1734044796698,3.73201,3880.1,3879.0,3.0]
[1734044798341,1.1547,3880.1,3878.9,2.48514769]
[1734044798508,3.73196,3880.1,3878.9,2.48514769]
[1734044798710,3.73196,3880.1,3878.9,5.48514769]
[1734044799104,3.73196,3880.1,3878.7,3.0]
[1734044799105,1.0697,3879.9,3878.7,3.0]
[1734044799306,1.10192586,3879.8,3878.1,2.99129743]
[1734044799535,2.57773,3879.4,3878.2,2.5785]
[1734044799908,3.64731,3879.6,3878.3,2.57843]
[1734044800246,3.64731,3879.6,3878.0,1.0623]
[1734044800247,1.0697,3879.6,3878.5,2.48514769]
[1734044800463,1.0697,3879.6,3878.6,2.82675477]
[1734044801141,0.03222341,3879.5,3878.5,2.48514769]
[1734044801326,1.1189,3879.4,3878.2,3.0]
[1734044801526,1.1189,3879.4,3878.2,2.57851]
[1734044801810,3.69663,3879.4,3878.2,2.57851]
[1734044802319,1.1189,3879.4,3878.1,5.48514769]
[1734044802525,1.1189,3878.9,3877.8,2.57877]
[1734044802720,1.1189,3878.9,3877.7,2.48514769]
[1734044802721,0.0322299,3878.8,3877.7,2.48514769]
[1734044802922,1.1189,3878.6,3877.7,2.48514769]
[1734044803554,1.1189,3878.6,3877.9,2.57868]
[1734044804157,1.0865,3879.0,3878.1,2.48514769]
[1734044804650,1.0865,3879.0,3878.4,2.57836]
[1734044804828,2.48514769,3880.4,3878.1,2.48514769]
[1734044804829,1.0721,3879.4,3878.7,3.0]
[1734044806174,1.1165,3879.9,3879.0,2.57794]
[1734044806373,1.1165,3879.9,3878.8,2.57811]
[1734044806676,1.1165,3879.9,3878.9,2.57804]
[1734044807238,1.1165,3879.9,3879.2,2.57783]
[1734044807441,1.1165,3879.9,3878.7,5.57815]
[1734044807442,1.1165,3879.9,3879.3,0.257783]
[1734044807963,1.1165,3879.9,3879.4,2.57771]
[1734044808164,1.1165,3879.9,3879.3,0.257783]
[1734044808381,1.1165,3879.9,3879.3,3.257783]
[1734044808538,1.1165,3879.9,3879.3,0.257783]
[1734044809238,1.1165,3879.9,3879.4,0.3257783]
[1734044809671,2.57656,3881.2,3879.4,0.3257783]
[1734044809836,2.57656,3881.2,3879.4,1.3522783]
[1734044809837,1.1165,3880.8,3879.4,1.3522783]
[1734044810038,1.1165,3880.8,3879.5,3.0]
[1734044810346,1.1165,3880.8,3879.8,2.48514769]
[1734044811444,1.1165,3880.8,3879.5,3.0]
[1734044811445,0.0322141,3880.7,3879.5,3.0]
[1734044811688,1.1165,3880.8,3879.5,3.0]
[1734044811884,1.1165,3880.8,3879.8,3.0]
[1734044812040,0.0322146,3880.7,3879.5,5.57762]
[1734044812237,1.0977,3880.4,3879.6,0.54781171]
[1734044813066,1.0977,3880.4,3879.5,3.0]
[1734044814171,1.0977,3880.4,3879.6,2.57757]
[1734044816400,1.0977,3880.4,3879.5,3.0]
[1734044817446,1.0977,3880.4,3879.5,5.57764]
[1734044818154,0.03221575,3880.3,3879.0,2.48514769]
[1734044818352,2.57686,3880.7,3879.0,2.48514769]
[1734044818353,1.1151,3880.2,3879.0,2.48514769]
[1734044818557,1.1151,3880.2,3879.1,3.0]
[1734044819154,1.1151,3880.2,3879.4,2.48514769]
[1734044819350,1.1151,3880.2,3879.6,2.57757]
[1734044819550,1.1151,3880.2,3879.4,2.48514769]
[1734044819898,1.0173,3880.7,3879.8,2.48514769]
[1734044820102,1.0173,3880.7,3879.9,2.57738]
[1734044820403,1.0173,3880.7,3879.8,5.48514769]
[1734044820569,1.0173,3880.7,3880.0,2.5773]
[1734044820756,1.0173,3880.7,3879.8,2.48514769]
[1734044820967,1.0173,3880.7,3880.2,2.57716]
[1734044821564,1.61696446,3881.7,3880.2,2.48514769]
[1734044821565,1.0934,3881.3,3880.2,2.48514769]
[1734044821959,1.0934,3881.3,3880.4,2.57704]
[1734044822183,1.0934,3881.3,3880.2,2.48514769]
[1734044822397,1.0934,3881.3,3880.3,3.91577877]
[1734044822581,2.57652,3881.2,3880.3,3.91577877]
[1734044822781,1.0934,3881.3,3880.3,3.91577877]
[1734044822980,2.57652,3881.2,3880.3,3.91577877]
[1734044823658,2.57659,3881.1,3880.3,3.91577877]
[1734044823863,2.57688,3880.7,3879.8,2.48514769]
[1734044824105,1.0821,3880.5,3879.8,2.48514769]
[1734044824398,1.0821,3880.5,3879.5,0.35040477]
[1734044824598,1.0821,3880.5,3879.7,2.57751]
[1734044825614,1.0821,3880.5,3879.5,3.35040477]
[1734044825785,1.008,3880.2,3879.1,2.57791]
[1734044825983,1.008,3880.2,3879.2,0.60908577]
[1734044826183,2.57732,3880.0,3879.0,2.48514769]
[1734044826384,1.008,3880.0,3879.0,2.48514769]
[1734044826773,1.008,3880.0,3879.0,5.06309769]
[1734044826988,1.008,3880.0,3879.0,2.48514769]
[1734044827524,2.57752,3879.7,3878.6,2.48514769]
[1734044827673,1.015,3879.5,3878.6,2.48514769]
[1734044828497,1.015,3879.5,3878.8,2.5781]
[1734044828713,1.015,3879.5,3878.9,3.0]
[1734044828881,1.015,3879.5,3878.9,5.57803]
[1734044829081,1.015,3879.5,3879.0,2.57796]
[1734044829421,1.015,3879.5,3879.0,2.835756]
[1734044829802,1.015,3879.5,3879.0,0.257796]
[1734044830002,1.015,3879.5,3878.9,3.0]
[1734044830402,1.015,3879.5,3878.9,2.57803]
[1734044830784,1.015,3879.5,3878.6,5.06332769]
[1734044830985,1.015,3879.5,3878.7,3.0]
[1734044831326,1.015,3879.5,3878.6,2.48514769]
[1734044831528,1.015,3879.5,3878.8,3.0]
[1734044831681,1.015,3879.5,3878.9,5.57803]
[1734044831926,1.015,3879.5,3879.0,2.57798]
[1734044832469,1.015,3879.5,3878.9,3.0]
[1734044833123,1.015,3879.5,3878.7,3.65416168]
[1734044833319,1.015,3879.5,3878.8,0.87175994]
[1734044839077,1.04722353,3879.5,3878.2,5.48514769]
[1734044839278,1.0516,3879.1,3878.2,5.48514769]
[1734044839433,1.0507,3879.1,3878.2,3.0]
[1734044839636,1.08292671,3879.1,3877.8,5.57871]
[1734044839938,1.08292671,3879.1,3877.7,3.66256691]
[1734044839939,1.0507,3879.1,3878.0,3.0]
[1734044840139,1.0507,3879.1,3878.0,2.57863]
[1734044840340,1.0507,3879.1,3878.1,3.0]
[1734044840779,1.0507,3879.1,3878.3,2.57843]
[1734044840948,1.0507,3879.1,3878.4,3.0]
[1734044841281,1.0507,3879.1,3878.9,2.57803]
[1734044841575,2.57734,3880.0,3878.9,2.57803]
[1734044841750,2.57699,3880.5,3879.2,2.57783]
[1734044841949,2.57698,3880.5,3879.2,2.57783]
[1734044842147,0.03221884,3880.4,3879.2,2.57783]
[1734044842353,1.33654974,3880.7,3879.3,5.48514769]
[1734044842548,1.0884,3880.7,3879.6,2.57757]
[1734044843278,1.0884,3880.7,3879.5,3.0]
[1734044843476,1.0884,3880.1,3878.9,2.48514769]
[1734044843674,1.0884,3880.1,3879.2,3.0]
[1734044843843,1.0884,3880.1,3879.2,3.80630577]
[1734044845689,1.0884,3880.1,3879.2,0.80630577]
[1734044846926,1.0884,3880.1,3879.7,2.57748]
[1734044847177,1.0884,3880.1,3879.5,3.0]
[1734044847641,1.0884,3880.1,3879.4,2.57765]
[1734044847838,1.0884,3880.1,3879.5,3.16454035]
[1734044848364,1.0884,3880.1,3879.5,0.58691035]
[1734044848680,3.6546963,3880.9,3878.9,2.48514769]
[1734044848681,2.57732,3880.0,3878.9,2.48514769]
[1734044848976,0.9977,3879.9,3878.9,2.48514769]
[1734044849152,0.16845983,3879.9,3878.9,2.48514769]
[1734044849350,0.16845983,3879.9,3879.0,3.0]
[1734044849559,0.16845983,3879.9,3878.9,2.48514769]
[1734044849898,0.16845983,3879.9,3879.3,2.48514769]
[1734044850674,0.16845983,3879.9,3879.4,2.57769]
[1734044851490,0.16845983,3879.9,3879.1,3.0]
[1734044851672,0.16845983,3879.9,3879.0,3.91631177]
[1734044851878,0.03222055,3879.8,3879.0,0.91631177]
[1734044852085,1.103,3879.7,3878.5,2.48514769]
[1734044852298,0.03222213,3879.6,3878.6,2.57823]
[1734044852463,1.103,3879.4,3878.4,0.557843]
[1734044852658,1.103,3879.4,3878.6,2.57824]
[1734044853417,1.103,3879.4,3878.5,2.48514769]
[1734044853566,1.103,3879.4,3878.8,2.57809]
[1734044853899,1.103,3879.4,3878.9,2.57804]
[1734044854466,1.103,3879.4,3878.6,3.30429907]
[1734044854672,0.03222512,3879.3,3878.1,2.48514769]
[1734044854913,3.68093,3879.1,3878.1,2.48514769]
[1734044855710,1.103,3879.1,3878.1,2.48514769]
[1734044855915,1.103,3879.1,3878.4,2.57838]
[1734044856993,1.103,3879.1,3878.4,2.57832]
[1734044857394,1.103,3879.1,3878.5,0.257832]
[1734044860535,1.103,3879.1,3878.5,2.836132]
[1734044861621,1.103,3879.1,3878.5,0.257832]
[1734044863428,1.103,3879.1,3878.5,2.836132]
[1734044863870,1.103,3879.1,3878.5,0.257832]
[1734044864637,1.103,3879.1,3878.5,2.836142]
[1734044864832,1.103,3879.1,3878.6,0.2836142]
[1734044865067,1.103,3879.1,3878.5,0.257832]
[1734044865769,1.103,3879.1,3878.7,2.57817]
[1734044866068,1.103,3879.1,3878.5,2.836132]
[1734044866433,1.103,3879.1,3878.5,0.257832]
[1734044866636,0.9957,3879.9,3878.5,3.75107969]
[1734044866868,0.9957,3879.9,3879.0,2.57796]
[1734044867249,0.9957,3879.9,3878.8,2.57811]
[1734044867443,0.9957,3879.9,3878.7,3.0]
[1734044867787,0.9957,3879.9,3878.6,3.93294697]
[1734044867992,0.9957,3879.9,3879.5,2.57762]
[1734044868149,0.9957,3879.9,3879.6,0.50627677]
[1734044869447,0.9957,3879.9,3879.3,5.06290769]
[1734044870653,0.9957,3879.9,3879.1,3.0]
[1734044870804,0.9957,3879.9,3879.2,3.0]
[1734044872604,0.9957,3879.9,3879.3,2.48514769]
[1734044873023,0.9957,3879.9,3879.4,2.57765]
[1734044873249,0.9957,3879.9,3879.5,0.50627977]
[1734044873830,0.9957,3879.9,3879.1,3.0]
[1734044874151,0.9957,3879.9,3879.0,2.57792]
[1734044874449,1.012,3879.6,3878.6,0.93294697]
[1734044874671,0.9981,3879.4,3878.6,0.93294697]
[1734044874818,0.9981,3879.4,3878.3,2.57843]
[1734044874819,0.03222523,3879.3,3878.3,3.63489908]
[1734044875022,0.9981,3879.4,3878.2,1.05646908]
[1734044875340,0.9981,3879.4,3878.1,5.11435132]
[1734044875341,0.9981,3879.4,3878.4,2.57837]
[1734044876461,0.9981,3879.4,3878.5,2.5783]
[1734044877139,0.9981,3879.4,3878.4,3.0]
[1734044877475,0.9981,3879.4,3878.5,0.41757381]
[1734044878221,0.9981,3879.4,3878.4,3.0]
[1734044878514,0.9981,3879.4,3878.4,5.57835]
[1734044878977,0.9981,3879.4,3878.2,4.05646908]
[1734044879260,0.03222694,3879.7,3878.0,4.15352038]
[1734044879261,1.0398,3879.2,3878.0,4.15352038]
[1734044879468,1.0398,3879.0,3877.9,3.54161677]
[1734044879772,0.03222868,3878.9,3877.9,5.06383769]
[1734044880067,1.0398,3879.0,3877.9,5.06383769]
[1734044880473,1.0398,3879.0,3877.9,2.48514769]
[1734044880474,0.0322287,3878.9,3877.9,2.48514769]
[1734044880624,1.0398,3879.0,3878.0,3.03655168]
[1734044881762,0.03222867,3878.9,3878.0,0.45797168]
[1734044882262,3.61778,3879.0,3878.0,0.45797168]
[1734044882647,1.0323,3878.8,3877.6,5.5789]
[1734044882849,1.0323,3878.8,3877.4,1.12413655]
[1734044882850,1.0323,3878.5,3877.4,3.0]
[1734044883057,1.06453622,3878.4,3877.1,2.48514769]
[1734044883217,1.06453623,3878.3,3877.1,2.48514769]
[1734044883421,1.0323,3878.2,3876.9,1.06182384]
[1734044883719,1.0323,3877.8,3876.5,3.54697153]
[1734044884033,1.0323,3877.8,3876.8,2.5794]
[1734044884238,0.03223879,3877.7,3876.5,5.59084558]
[1734044884450,2.57874,3877.9,3876.5,3.01126558]
[1734044884451,1.0304,3877.6,3876.5,3.01126558]
[1734044884759,1.0304,3877.6,3876.6,2.57956]
[1734044885567,1.0304,3877.6,3876.5,2.48514769]
[1734044885568,1.0304,3877.6,3876.7,2.57946]
[1734044885777,1.0304,3877.6,3876.5,2.48514769]
[1734044885923,1.0304,3877.7,3876.5,2.48514769]
[1734044886125,1.0606,3877.5,3876.4,2.57965]
[1734044886542,1.09284201,3877.5,3876.5,3.0]
[1734044886840,1.0606,3877.5,3876.5,2.57964]
[1734044887190,1.0095,3877.3,3876.0,1.1859658]
[1734044887332,1.11974499,3877.2,3876.1,2.5799]
[1734044888394,1.11974499,3877.2,3876.3,2.57977]
[1734044888395,1.0875,3877.2,3876.3,2.57977]
[1734044888603,1.0875,3877.2,3876.1,3.50650477]
[1734044888816,0.03224399,3877.1,3876.1,0.50650477]
[1734044889118,0.03224399,3877.1,3875.9,2.58004]
[1734044889119,1.0664,3877.0,3875.9,2.58004]
[1734044889445,1.0342,3876.8,3875.8,2.58008]
[1734044890178,1.0342,3876.8,3875.9,2.58002]
[1734044890682,1.0962,3876.6,3875.2,5.48514769]
[1734044890892,1.0962,3876.6,3875.5,3.0]
[1734044890893,1.0962,3876.4,3875.5,3.0]
[1734044891218,1.12845042,3876.3,3875.5,3.0]
[1734044891368,1.12845042,3876.3,3875.2,3.00467238]
[1734044891691,1.0962,3876.3,3875.2,5.06564769]
[1734044891897,1.0962,3876.3,3875.5,2.58028]
[1734044892152,1.0962,3876.3,3875.3,0.61223477]
[1734044892309,1.0962,3876.3,3875.5,2.58029]
[1734044892807,1.0962,3876.3,3875.4,2.58032]
[1734044893213,0.0322512,3876.2,3875.3,3.61223477]
[1734044893366,1.0135,3876.1,3875.3,3.61223477]
[1734044893563,0.03225309,3876.0,3875.2,3.0]
[1734044893862,1.0135,3876.1,3875.1,2.58057]
[1734044894408,1.0135,3876.1,3875.1,2.48514769]
[1734044894578,1.0135,3876.1,3875.8,2.58009]
[1734044894779,1.0135,3876.1,3876.0,2.57997]
[1734044894980,1.0759,3877.3,3876.0,0.257997]
[1734044895205,1.0759,3877.3,3875.8,2.58005]
[1734044895206,1.0759,3877.1,3875.8,2.58005]
[1734044895362,1.0759,3877.1,3875.5,2.48514769]
[1734044895363,1.0759,3877.1,3875.9,2.57999]
[1734044895563,1.0759,3877.1,3875.9,2.48514769]
[1734044895768,1.0759,3877.1,3876.5,2.57962]
[1734044896838,0.03224291,3877.0,3876.0,3.0]
[1734044896991,1.0555,3876.9,3876.1,0.54851477]
[1734044897881,1.0555,3876.9,3875.3,1.63839717]
[1734044897882,0.03224613,3876.8,3875.7,2.58017]
[1734044898082,0.03224613,3876.8,3875.3,1.0033]
[1734044898083,1.0265,3876.7,3875.4,3.0]
[1734044898282,0.03224848,3876.6,3875.6,2.58023]
[1734044898642,1.0594,3876.5,3875.6,2.58023]
[1734044899518,1.0594,3876.5,3875.3,2.48514769]
[1734044899685,1.0594,3876.5,3875.8,2.58006]
[1734044900583,1.0594,3876.5,3876.1,5.06504769]
[1734044900839,1.0594,3876.5,3876.2,2.57984]
[1734044901156,1.0594,3876.5,3876.4,2.57971]
[1734044901800,1.0046,3877.6,3876.6,2.57957]
[1734044902023,1.0046,3877.6,3876.7,0.257957]